Cogmind - Beta 15 @@@ ROGUE MODE // 2025.06.09 @ 15:53:06 Player: Morgan Result: Destroyed by G-34 Mercenary with Small Laser Performance ------------- Evolutions (1) 500 Regions Visited (2) 400 Robots Destroyed (36) 180 Value Destroyed (831) 831 Prototype IDs (1) 20 Alien Tech Used (0) 0 Bonus (0) 0 TOTAL SCORE: 1931 Bonus ------- None Cogmind --------- Core Integrity 0/400 Matter 48/300 Energy 279/280 System Corruption 0% Temperature Cool (6) Movement Core (200) Ox3 Location -9/Materials Parts ------- > --- POWER (2) -------- Heavy Ion Engine > --- PROPULSION (3) --- (None) > --- UTILITY (2) ------ Terrain Scan Processor > --- WEAPON (2) ------- Autogun > --- INVENTORY (5) ---- Improved Hover Unit Flight Unit Flight Unit Peak State ------------ > --- POWER ------------ Light Ion Engine Light Ion Engine > --- PROPULSION ------- Improved Hover Unit Flight Unit Flight Unit > --- UTILITY ---------- Hardlight Generator > --- WEAPON ----------- Light Assault Rifle Blade Saw > --- INVENTORY -------- Light Ion Engine Flight Unit Flight Unit Flight Unit [Rating: 13] Favorites ----------- Power Light Ion Engine Engine Light Ion Engine Propulsion Light Treads Treads Light Treads Leg Aluminum Leg Hover Unit Improved Hover Unit Flight Unit Flight Unit Utility Small Storage Unit Device Sensor Array Storage Small Storage Unit Processor Terrain Scan Processor Protection Hardened Light Armor Plating Weapon Light Assault Rifle Energy Gun Medium Laser Ballistic Gun Light Assault Rifle Launcher Rocket Launcher Special Weapon Mining Laser Slashing Weapon Blade Saw Build | -11 -10 -9 ------- Run | Yrd Mat Mat Slots Evolved 2 | . . 2 Power 1 | . . 1 Propulsion 1 | . . 1 Utility . | . . . Weapon . | . . . Parts Attached 45 | 9 14 22 Power 7 | 1 3 3 Engine 7 | 1 3 3 Core . | . . . Reactor . | . . . Propulsion 14 | 2 4 8 Treads 5 | 2 2 1 Leg 3 | . . 3 Wheel . | . . . Hover 1 | . . 1 Flight 5 | . 2 3 Utility 12 | 2 5 5 Device 5 | . 2 3 Storage 5 | 2 3 . Processor 1 | . . 1 Hackware . | . . . Protection 1 | . . 1 Artifact . | . . . Weapon 12 | 4 2 6 Energy Gun 2 | 2 . . Energy Cannon . | . . . Ballistic Gun 3 | 1 1 1 Ballistic Cannon . | . . . Launcher 5 | . 1 4 Special Weapon 1 | 1 . . Impact Weapon . | . . . Slashing Weapon 1 | . . 1 Piercing Weapon . | . . . Special Melee Weapon . | . . . Unidentified Prototypes 1 | . . 1 Parts Lost 27 | . 9 18 Power 6 | . 3 3 Propulsion 9 | . 2 7 Utility 3 | . 1 2 Weapon 9 | . 3 6 Highest Loss Streak 9 | . 5 9 To Critical Strikes . | . . . Average Backups 3 | 3 4 3 Power 1 | 1 1 . Propulsion 1 | 1 1 3 Utility . | . . . Weapon . | . . . Tool/Special . | . . . Unused Backups 3 | . 2 1 Power 1 | . 1 . Propulsion 2 | . 1 1 Utility . | . . . Weapon . | . . . Tool/Special . | . . . Average Slot Usage (%) 80 | . 95 59 Engine 9 | . 12 6 Treads 14 | . 24 1 Leg 3 | . . 8 Flight 5 | . 2 9 Device 10 | . 9 12 Storage 10 | . 17 . Protection 1 | . . 3 Energy Gun 4 | . 7 . Ballistic Gun 9 | . 12 3 Launcher 5 | . 3 8 Special Weapon 1 | . 2 . Slashing Weapon 1 | . . 3 Peak Build Rating 13 | 7 7 13 Average Rating 6 | 6 6 8 On Entrance 4 | . 7 7 Naked Turns . | . . . Heaviest Build 19 | 16 19 15 Greatest Support 40 | 40 40 30 Greatest Overweight (x) 3 | . 1 3 Average Overweight (x) . | . . . Largest Inventory Capacity 8 | 8 8 5 Average Capacity 6 | 7 6 5 Most Carried 6 | 5 6 5 Average Carried 3 | 3 4 3 Final Capacity 8 | 8 5 5 Final Carried 4 | 4 4 3 Class Distribution -------------------- 95% | Mutant 4% | Scavenger-Mutant Dominant Class ---------------- Mutant | -10/Materials Mutant | -9/Materials Resources | -11 -10 -9 ----------- Run | Yrd Mat Mat Matter Collected 901 | 274 374 253 Remotely . | . . . Salvage Created 784 | 92 347 345 Parts 60 | 8 27 25 Haulers Intercepted . | . . . Recyclers Shooed 3 | . 3 . Parts Field Recycled . | . . . Retrieved Matter . | . . . Parts Self-Destructed . | . . . Prevented . | . . . Kills | -11 -10 -9 ------- Run | Yrd Mat Mat Combat Hostiles Destroyed 25 | . 13 12 Melee 1 | . . 1 Guns 12 | . 6 6 AOE 12 | . 7 5 Classes Destroyed 9 | 3 3 3 Worker 2 | 1 1 . Builder 4 | . 1 3 Tunneler 1 | 1 . . Recycler 3 | 1 1 1 Watcher 1 | . . 1 Swarmer 8 | . 3 5 Grunt 12 | . 10 2 Duelist 1 | . . 1 Sentry 4 | . . 4 Best Kill Streak 5 | 3 5 4 Combat Bots Only 5 | . 5 3 Max Kills in Single Turn 2 | 2 2 2 Gunslinging . | . . . Exploded 2 | . 2 1 Melee 1 | . . 1 Uniques/NPCs Destroyed . | . . . Combat | -11 -10 -9 -------- Run | Yrd Mat Mat Hostile Shots Fired 314 | . 141 173 Missed 93 | . 48 45 Hits 221 | . 93 128 Projectile 221 | . 93 128 Critical Strikes 5 | . 1 4 Damage Taken 2597 | . 984 1613 Core 545 | . 138 407 Absorbed by Shields 136 | . . 136 Core Remaining (%) 72 | 100 44 . Volleys Fired 118 | 4 68 46 Largest 2 | 2 2 2 Hottest 120 | 70 120 66 Shots Fired 166 | 8 103 55 Gun 120 | 8 84 28 Cannon . | . . . Launcher 37 | . 10 27 Special 9 | . 9 . Kinetic 86 | 4 54 28 Thermal 43 | 4 39 . Explosive 37 | . 10 27 Electromagnetic . | . . . Robot Hit Streak 9 | 2 6 9 Robot Miss Streak 5 | 1 5 4 Penetration Max . | . . . Secondary Targets . | . . . Shots Hit Robots 83 | 4 43 36 Core Hits 65 | 6 29 30 Critical Kills . | . . . Critical Parts Destroyed . | . . . Critical Strikes 4 | . 3 1 Burn 3 | . 3 . Sever 1 | . . 1 Melee Attacks 5 | . . 5 Impact . | . . . Slashing 5 | . . 5 Piercing . | . . . Sneak Attacks . | . . . Combat Hostiles . | . . . Follow-up Attacks . | . . . Damage Inflicted 2117 | 71 1009 1037 Guns 622 | 55 352 215 Cannons . | . . . Explosions 1347 | . 585 762 Melee 54 | . . 54 Ramming 22 | 16 . 6 Kinetic 400 | 18 167 215 Thermal 294 | 37 257 . Explosive 1347 | . 585 762 Electromagnetic . | . . . Impact . | . . . Slashing 54 | . . 54 Piercing . | . . . Highest Corruption . | . . . Average Corruption . | . . . Corruption Purged . | . . . Corruption Blocked . | . . . Overload Shots . | . . . Overflow Damage 38 | . 3 35 Projectiles . | . . . Explosions 38 | . 3 35 Melee . | . . . Knockbacks . | . . . Impact . | . . . Kinetic . | . . . Secondary . | . . . Self-Inflicted Damage 284 | . 42 242 Shots 12 | . 3 9 Rammed 6 | 6 . . Targets Rammed 7 | 6 . 1 Kicked 1 | . . 1 Crushed . | . . . Highest Temperature 92 | 40 92 21 Average Temperature 23 | 19 25 7 Received Heat Transfer 832 | . 375 457 Siege Activations . | . . . Martial Activations . | . . . Shielding Activations . | . . . Robots Disrupted . | . . . Combat Hostiles . | . . . Robots Corrupted . | . . . Combat Hostiles . | . . . Parts Fried . | . . . Impact Corruptions . | . . . Robots Melted . | . . . Combat Hostiles . | . . . Parts Melted . | . . . Heat Transferred 1038 | 111 927 . Parts Sabotaged . | . . . Parts Stolen . | . . . Parts Stripped . | . . . Power Chain Reactions . | . . . Alert | -11 -10 -9 ------- Run | Yrd Mat Mat Maximum Alert Level 1 | . . 1 Low Security (%) 99 | 100 100 98 Level 1 . | . . 1 Level 2 . | . . . Level 3 . | . . . Level 4 . | . . . Level 5 . | . . . High Security . | . . . Max Security . | . . . Peak Influence 205 | 10 136 205 Initial 22 | . . 22 Average 38 | . 49 87 Influence Increases 894 | 15 394 485 Destroy 0b10 Robot/C 500 | . 260 240 Destroy 0b10 Robot/NC 55 | 15 15 25 Destroy Leader 122 | . 60 62 Successful Hack 1 | . 1 . Disable Machine 60 | . 15 45 Destroy Structure 156 | . 43 113 Influence Decreases 711 | 15 340 356 Entered New Map 32 | . . 32 Time Decay 447 | 15 250 182 Lost Part 232 | . 90 142 Squads Dispatched 6 | . 6 . Investigation 3 | . 3 . Extermination . | . . . Reinforcement 3 | . 3 . Assault . | . . . Garrison . | . . . Intercept . | . . . Searches Triggered . | . . . Construction Impeded . | . . . Haulers Reinforced . | . . . Active Scanning Responses . | . . . Cargo Convoy Interrupts . | . . . Stealth | -11 -10 -9 --------- Run | Yrd Mat Mat Distress Signals 2 | . 1 1 Communications Jammed . | . . . Distress Signals . | . . . Times Spotted 39 | . 19 20 Peak Tracking Total 8 | . 4 8 Tactical Retreats . | . . . Traps | -11 -10 -9 ------- Run | Yrd Mat Mat Traps Triggered . | . . . Indirectly . | . . . Trap Hack Attempts . | . . . Triggered . | . . . Disarmed . | . . . Reprogrammed . | . . . Reused . | . . . Traps Extracted . | . . . Installed . | . . . Triggered . | . . . Machines | -11 -10 -9 ---------- Run | Yrd Mat Mat Machines Disabled 4 | . 1 3 Max in Single Turn 2 | . 1 2 Machines Repaired . | . . . Machines Dismantled . | . . . Machines Sabotaged . | . . . Overloaded Fab Kills . | . . . Hacking | -11 -10 -9 --------- Run | Yrd Mat Mat Machines Accessed 4 | . 3 1 Terminals 2 | . 1 1 Fabricators . | . . . Repair Stations . | . . . Recycling Units 2 | . 2 . Scanalyzers . | . . . Garrison Access . | . . . Total Hacks 11 | . 8 3 Successful 5 | . 3 2 Failed 6 | . 5 1 Catastrophic 1 | . 1 . Database Lockouts . | . . . Manual 1 | . 1 . Terminals 5 | . 2 3 Fabricators . | . . . Repair Stations . | . . . Recycling Units 6 | . 6 . Scanalyzers . | . . . Garrison Access . | . . . Terminal Hacks 2 | . . 2 Patrol Status 1 | . . 1 Hauler Manifests 1 | . . 1 Fabricator Hacks . | . . . Repair Station Hacks . | . . . Recycling Unit Hacks 3 | . 3 . Recycle Component 2 | . 2 . Process 1 | . 1 . Scanalyzer . | . . . Garrison Access Hacks . | . . . Unauthorized Hacks . | . . . Terminals . | . . . Fabricators . | . . . Repair Stations . | . . . Recycling Units . | . . . Scanalyzers . | . . . Garrison Access . | . . . Data Cores Recovered . | . . . Used . | . . . Hacking Detections 4 | . 3 1 Full Trace Events 3 | . 3 . Feedback Events . | . . . Feedback Blocked . | . . . Robot Schematics Acquired . | . . . Robots Built . | . . . Authchips . | . . . Time . | . . . Total Robot Build Rating . | . . . Part Schematics Acquired . | . . . Parts Built . | . . . Authchips . | . . . Time . | . . . Total Part Build Rating . | . . . Parts Repaired . | . . . Time . | . . . Parts Recycled 2 | . 2 . Recycled Matter 96 | . 96 . Retrieved Matter . | . . . Retrieved Components . | . . . Parts Scanalyzed . | . . . Part Schematics Acquired . | . . . Parts Damaged . | . . . Bothacking | -11 -10 -9 ------------ Run | Yrd Mat Mat Used RIF Installer . | . . . Robots Hacked . | . . . Non-combat . | . . . Combat . | . . . Robot Hacks Applied . | . . . Relay Couplers Released . | . . . Fabnet Peak Effective % . | . . . Robots Rewired . | . . . Allies Hacked . | . . . Hacks Repelled . | . . . Allies | -11 -10 -9 -------- Run | Yrd Mat Mat Total Allies . | . . . Largest Group . | . . . Highest-Rated Group . | . . . Highest-Rated Ally . | . . . Total Orders . | . . . Ally Attacks . | . . . Total Damage . | . . . Kills . | . . . Allies Corrupted . | . . . Allies Melted . | . . . Intel | -11 -10 -9 ------- Run | Yrd Mat Mat Active Infowar (turns) 522 | . 473 49 Sensors 482 | . 473 9 Seismic 40 | . . 40 Robot Analysis Total . | . . . Derelict Logs Recovered . | . . . Drone Launches . | . . . Drone Recoveries . | . . . Exploration | -11 -10 -9 ------------- Run | Yrd Mat Mat Turns Passed 1934 | 798 673 463 Spaces Moved 962 | 385 329 248 Core 57 | 30 . 27 Treads 621 | 355 245 21 Legs 128 | . . 128 Wheels . | . . . Hover . | . . . Flight 156 | . 84 72 Fastest Speed 34 | 50 37 34 Average Speed 138 | 151 133 122 Slowest Speed 200 | 160 160 200 Overloaded Moves . | . . . Propulsion Burnouts . | . . . Robots Hopped . | . . . Potential Cave-ins . | . . . Cave-ins Triggered . | . . . Exploration Rate (%) 34 | 24 49 30 Regions Visited 2 Branch Regions . Pre-discovered Areas . | . . . Known Exits Taken . | . . . Unknown Exits Taken 2 | 1 1 . Scrap Searched . | . . . Spaces Dug 3 | . 3 . Terrain Destroyed 195 | . 44 151 Melee . | . . . Projectile 5 | . 5 . AOE 190 | . 39 151 Terrain Rammed . | . . . Walls Destroyed . | . . . Machines Disabled . | . . . Actions | -11 -10 -9 --------- Run | Yrd Mat Mat Total 1396 | 587 457 352 Wait 186 | 174 12 . Move 960 | 384 328 248 Hop . | . . . Pick Up 46 | 9 18 19 Fast Attach 3 | 3 . . Attach 45 | 4 18 23 Detach 10 | . 6 4 Swap 2 | 2 . . Drop 14 | 1 7 6 Fire 118 | 4 68 46 Melee 5 | . . 5 Ram . | . . . Kick 1 | . . 1 Crush 6 | 6 . . Escape Stasis . | . . . Rewire . | . . . Trap . | . . . Miscellaneous . | . . . Route ------- -11/Scrapyard -10/Materials -9/Materials History --------- Turn | Location | Event 28 | -11/Scrapyard | Discovered new exit (range 15) 799 | -11/Scrapyard | Entered Materials 800 | -10/Materials | Build established: Mutant 1346 | -10/Materials | Discovered new exit (range 11) 1352 | -10/Materials | Core integrity fell below 50% 1379 | -10/Materials | Lost 5 parts (1p2n1u1w) 1472 | -10/Materials | Entered another Materials area 1472 | -9/Materials | Evolved 2 slots: Power x1, Propulsion x1 1634 | -9/Materials | Core integrity fell below 50% 1673 | -9/Materials | Lost 9 parts (3p4n2w) 1909 | -9/Materials | Core integrity fell below 20% 1935 | -9/Materials | Destroyed by G-34 Mercenary with Small Laser Last Messages --------------- The unstable cave ceiling collapses. U-05 Engineer lays Concrete. The unstable cave ceiling collapses. U-05 Engineer lays Concrete. Acquired Autogun. Rocket Launcher destroyed. Aluminum Leg destroyed. Dropped Lgt. Treads. Acquired Prototype Engine. Identified Hvy. Ion Engine. [Achievement: Risk Taker] Hrd. Light Armor Plating destroyed. S-10 Pest destroyed. Aluminum Leg destroyed. S-10 Pest destroyed. Aluminum Leg destroyed. S-10 Pest destroyed. Acquired 10 matter. Y-45 Defender destroyed. Acquired 60 matter. Map ----- +----------------------------------------------------+ | ?????????????????????????????????????????????????? | | ?????????????????????????????????????????????????? | | ?????????????????????????????????????????????????? | | ?????????????????????????????????????????????????? | | ?????????????????????????????????????????????????? | | ?????????????????????????????????????????????????? | | ?????????????????????????????????????????????????? | | ?????????????????????????????????????????????????? | | ?????????????????????????????????????????????????? | | ?????????????????????????????????????????????????? | | ?????????????????????????? #?????????????????????? | | ?????????????????????????? ?????????????????????? | | ?????????????????????????? ?????????????????????? | | ?????????????????????????? ?????????????????????? | | ?????????????????????????? ?????????????????????? | | ?????????????????????????? ?????????????????????? | | ?????????????????????????? ?????????????????????? | | ?????????????????????????# ?????????????????????? | | ?????????????????????????# #?????????????????????? | | ?????????????????????????# #?????????????????????? | | ?????????????????????????# #?????????????????????? | | ?????????????????????????# #?????????????????????? | | ?????????????????????????# #?????????????????????? | | ??????????????????? ???#*#?????????????????????? | | ??????????????????# ####g########??????????????? | | ??????????????????# # =@%=[ #??????????????? | | ??????????????????+ /g"""=""" #??????????????? | | ??????????????????# # "R """ #??????????????? | | ??????????????????# # """ """ ##?????????????? | | ??????????????????# # """ #?????????????? | | ??????????????????# # a""" ##?????????????? | | ??????????????????# # =[*a #??????????????? | | ??????????????????# ####+###+##+#??????????????? | | ?????????????????## ##?#%#?? #??????????????? | | ?????????????????# ! ###%### #??????????????? | | ??????############ =[ / ???????? | | ????? T #######??????????????? | | ????? = #????????????????????? | | ????? ## #????????????????????? | | ???????????#########/#### #????????????????????? | | ?????######???# + +????????????????????? | | ?????# ???# # #????????????????????? | | ?????? ???# # #????????????????????? | | ?????? ! ???# # #????????????????????? | | ??????[% ????########### #????????????????????? | | ###????! ?????# + #????????????????????? | | #???? ?????# # #??????????#?????????? | | #??###+###???# # #??####### #?????????? | | #??# #???# ?# #??# ??????????? | | #### ##### ?# #??# ????????????? | +----------------------------------------------------+ Best States ------------- Heat Dissipation 38 Energy Generation 15 Energy Capacity 280 Matter Stores 376 Matter Capacity 450 Sight Range 16 Robot Scan Range 14 Terrain Scan Density 85 Armor Coverage 150 Evasion (%) 62 Recoil Reduction 2 Item Schematics ----------------- None Robot Schematics ------------------ None Fabricated ------------ Nothing Repaired ---------- Nothing Alien Tech Used ----------------- None Achievements -------------- Risk Taker Challenges ------------ None Game ------ Seed SystemWaveDrillbomb Manual? 0 Play Time 00:28:35 Cumulative 1.4 hours Start 2025.06.09 @ 15:23:39 End 2025.06.09 @ 15:53:06 Sessions 1 Manual Loads 0 Difficulty Rogue Special Mode None Game No. 6 Rogue 6 Adventurer 0 Explorer 0 Win Type - Total 0 Types 0/0/0/0/0/0/0/0/0/0 Lore% 0 Gallery% 4 Achievement% 4 Wizard Run 0 Options --------- Layout 1 ASCII 0 Keyboard 0 Movement Mouse Keybinds 0 Fullscreen 1 Font 24/Smallcaps Map View 25x17 Zoom Use 77% Tactical HUD 0 Map Filters NONE Filters NONE Steam 1 RUN: 7c54c18b-6a2c-47ad-9b46-d92240567a28